fUST/lending_fUST_20250715
["ID","MTS","AMOUNT","RATE_DAILY","PERIOD"]
[372118788,1752526254582,-205.96,0.00020547,2]
[372118789,1752526254592,-460.0,0.00020547,2]
[372118790,1752526254602,-854.38,0.00020547,2]
[372118791,1752526254611,-460.0,0.00020547,2]
[372118792,1752526254620,-3959.4,0.000206,2]
[372118793,1752526254630,-1579.14,0.000206,2]
[372118794,1752526254639,-401.251,0.00020651,2]
[372118795,1752526254649,-1689.56437515,0.00020659,3]
[372118796,1752526254659,-760.0,0.00020758,2]
[372118797,1752526254669,-460.0,0.00020821,2]
[372118798,1752526254679,-600.96,0.00020821,2]
[372118799,1752526254688,-460.0,0.00020821,2]
[372118800,1752526254698,-1462.11,0.00020821,2]
[372118801,1752526254707,-632.84,0.00020821,2]
[372118802,1752526254716,-460.0,0.00020821,2]
[372118803,1752526254725,-854.38,0.00020821,2]
[372118804,1752526254735,-399.1,0.00020821,2]
[372118805,1752526254744,-1689.56437515,0.00020934,4]
[372118806,1752526254753,-2000.0,0.00021,2]
[372118807,1752526254763,-500.0,0.00021064,2]
[372118808,1752526254773,-460.0,0.00021095,2]
[372118809,1752526254783,-600.96,0.00021095,2]
[372118810,1752526254792,-460.0,0.00021095,2]
[372118811,1752526254803,-1462.11,0.00021095,2]
[372118812,1752526254818,-632.84,0.00021095,2]
[372118813,1752526254828,-460.0,0.00021095,2]
[372118814,1752526254837,-854.38,0.00021095,2]
[372118815,1752526254849,-24979.11,0.000212,2]
[372118816,1752526254859,-1689.56437515,0.0002121,4]
[372118817,1752526254868,-860.0,0.00021306,2]
[372118818,1752526254879,-500.0,0.00021327,2]
[372118819,1752526254888,-374.88491267,0.00021336,2]
[372118820,1752526254897,-231.28369723,0.00021358,2]
[372118821,1752526254907,-460.0,0.00021369,2]
[372118822,1752526254916,-600.96,0.00021369,2]
[372118823,1752526254926,-460.0,0.00021369,2]
[372118824,1752526254935,-1462.11,0.00021369,2]
[372118825,1752526254945,-632.84,0.00021369,2]
[372118826,1752526254954,-460.0,0.00021369,2]
[372118827,1752526254964,-854.38,0.00021369,2]
[372118828,1752526254974,-713.02461964,0.00021379,5]
[372118829,1752526254983,-823.0,0.00021452,2]
[372118830,1752526254993,-1689.56437515,0.00021486,5]
[372118831,1752526255002,-460.0,0.00021643,2]
[372118832,1752526255011,-600.96,0.00021643,2]
[372118833,1752526255021,-499.74,0.00021643,2]
[372118834,1752526255031,-1462.11,0.00021643,2]
[372118835,1752526255041,-632.84,0.00021643,2]
[372118836,1752526255051,-460.0,0.00021643,2]
[372118837,1752526255061,-854.38,0.00021643,2]
[372118838,1752526255073,-643.9634064,0.00021655,2]
[372118839,1752526255082,-1689.56437515,0.00021762,5]
[372118840,1752526255092,-4000.0,0.00021806,4]
[372118841,1752526255101,-960.0,0.00021854,2]
[372118842,1752526255111,-460.0,0.00021917,2]
[372118843,1752526255120,-600.96,0.00021917,2]
[372118844,1752526255130,-1462.11,0.00021917,2]
[372118845,1752526255139,-632.84,0.00021917,2]
[372118846,1752526255149,-518.58,0.00021917,2]
[372118847,1752526255158,-854.38,0.00021917,2]
[372118848,1752526255169,-150.0,0.00021918,2]
[372118849,1752526255179,-3959.4,0.00022,7]
[372118850,1752526255189,-1579.14,0.00022,7]
[372118851,1752526255198,-150.0,0.00022,2]
[372118852,1752526255208,-1689.56437515,0.00022038,6]
[372118853,1752526255218,-647.0,0.00022092,2]
[372118854,1752526255228,-407.0,0.00022092,2]
[372118855,1752526255237,-2154.0,0.00022092,2]
[372118856,1752526255247,-968.0,0.00022092,2]
[372118857,1752526255256,-150.0,0.00022092,2]
[372118858,1752526255267,-42939.58,0.000221,7]
[372118859,1752526255276,-214.33456592,0.000221,7]
[372118860,1752526255286,-160.0,0.000221,7]
[372118861,1752526255295,-12600.81778503,0.000221,7]
[372118862,1752526255305,-460.0,0.00022191,2]
[372118863,1752526255315,-600.96,0.00022191,2]
[372118864,1752526255324,-1462.11,0.00022191,2]
[372118865,1752526255334,-632.84,0.00022191,2]
[372118866,1752526255343,-854.38,0.00022191,2]
[372118867,1752526255353,-1689.56437515,0.00022314,7]
[372118868,1752526255363,-795.6670211,0.00022329,2]
[372118869,1752526255373,-241.0,0.0002237,5]
[372118870,1752526255383,-173.333,0.00022377,2]
[372118871,1752526255393,-638.64980658,0.00022393,2]
[372118872,1752526255405,-1060.0,0.00022402,2]
[372118873,1752526255416,-553.21,0.00022445,6]
[372118874,1752526255426,-201.75128616,0.00022465,2]
[372118875,1752526255542,-258.24871384,0.00022465,2]
[372118876,1752526255552,-159.75128826,0.00022465,2]
[372118877,1752526255596,-460.0,0.00016986,2]
[372118878,1752526255606,-441.20871174,0.00022465,2]
[372118879,1752526255615,-1013.06302317,0.00022465,2]
[372118880,1752526255627,-449.04697683,0.00022465,2]
[372118881,1752526255636,-229.02767499,0.00022465,2]
[372118882,1752526255647,-403.81232501,0.00022465,2]
[372118883,1752526255656,-854.38,0.00022465,2]
[372118884,1752526255666,-2172.01,0.000225,2]
[372118885,1752526255675,-553.21,0.00022545,6]
[372118886,1752526255686,-374.88491267,0.00022586,2]
[372118887,1752526255697,-1689.56437515,0.0002259,7]
[372118888,1752526255706,-249.681117,0.00022603,2]
[372118889,1752526255716,-553.22933333,0.00022645,3]
[372118890,1752526255727,-239.84119403,0.00022727,2]
[372118891,1752526255738,-327.86707664,0.00022739,2]
[372118892,1752526255749,-601.14,0.00022739,2]
[372118893,1752526255759,-1307.64234869,0.00022739,2]
[372118894,1752526255771,-154.65634443,0.00022739,2]
[372118895,1752526255781,-632.87,0.00022739,2]
[372118896,1752526255790,-854.47766143,0.00022739,2]
[372118897,1752526255802,-300.0,0.00022803,2]
[372118898,1752526255812,-208.19599414,0.00022839,2]
[372118899,1752526255824,-259.93247712,0.00022839,2]
[372118900,1752526255835,-60.23918039,0.00022866,8]
[372118901,1752526255919,-344.35650353,0.00022866,8]
[372118902,1752526255931,-499.950315,0.00022866,8]
[372118903,1752526255943,-785.01837623,0.00022866,8]
[372118904,1752526255953,-11002.46128388,0.000229,2]
[372118905,1752526255967,-13976.64871612,0.000229,2]
[372118906,1752526255978,-1379.224969,0.000229,5]
[372118907,1752526255991,-214.33456592,0.000229,3]
[372118908,1752526256001,-214.33456592,0.000229,10]
[372118909,1752526256011,-160.0,0.000229,3]
[372118910,1752526256021,-5601.03824509,0.000229,3]
[372118911,1752526256090,-460.0,0.00016438,2]
[372118912,1752526256100,-460.0,0.00016712,2]
[372118913,1752526256110,-460.0,0.00016986,2]
[372118914,1752526256120,-150.0,0.00019092,2]
[372118915,1752526256129,-150.0,0.00019092,2]
[372118916,1752526256138,-150.0,0.00022092,2]
[372118917,1752526256149,-6999.77953994,0.000229,3]
[372118918,1752526256159,-12600.81778503,0.000229,10]
[372118919,1752526256169,-151.0,0.00022902,7]
[372118920,1752526256179,-151.0,0.00022902,7]
[372118921,1752526256188,-1000.0,0.0002292,5]
[372118922,1752526256198,-1000.0,0.0002294,5]
[372118923,1752526256208,-1160.0,0.00022949,2]
[372118924,1752526256218,-1000.0,0.0002296,5]
[372118925,1752526256227,-1000.0,0.0002298,5]
[372118926,1752526256236,-541.19,0.00022998,4]
[372118927,1752526256246,-1000.0,0.00023,5]
[372118928,1752526256256,-160.0,0.00023,3]
[372118929,1752526256266,-160.0,0.00023,3]
[372118930,1752526256276,-215.47013733,0.00023,3]
[372118931,1752526256285,-160.0,0.00023,3]
[372118932,1752526256295,-525.46609069,0.00023,3]
[372118933,1752526256304,-230.73061749,0.00023,3]
[372118934,1752526256314,-838.70323114,0.00023,3]
[372118935,1752526256323,-150.0,0.00023014,7]
[372118936,1752526256332,-541.19,0.00023098,5]
[372118937,1752526256341,-1689.56437515,0.00023141,8]
[372118938,1752526256351,-541.19,0.00023198,3]
[372118939,1752526256360,-524.929349,0.00023212,8]
[372118940,1752526256370,-500.0,0.00023256,2]
[372118941,1752526256379,-541.19,0.00023298,7]
[372118942,1752526256389,-6189.51127804,0.000233,7]
[372118943,1752526256401,-736.40236497,0.000233,7]
[372118946,1752526310071,183.172903,0.00027397,120]
[372118947,1752526318370,150.0,0.0001461,2]
[372118948,1752526318791,150.0,0.00015306,2]
[372118949,1752526384099,150.0,0.00014615,2]
[372118950,1752526384488,150.0,0.00015311,2]
[372118954,1752526637342,5718.81276097,0.00015336,2]
[372118955,1752526637365,14030.28177753,0.00015336,2]
[372118956,1752526666286,150.0,0.00014747,2]
[372118957,1752527197824,332.322835,0.00013699,2]
[372118961,1752527367720,183.172903,0.00027397,120]
[372118971,1752527432117,-919.60477784,0.00016225,2]
[372118972,1752527432127,-738.06388386,0.00016228,2]
[372118975,1752527432179,-181.54089395,0.00016228,2]
[372118977,1752527432190,-758.32584836,0.00016231,2]
[372118979,1752527432201,-161.27892945,0.00016231,2]
[372118981,1752527432210,-376.07107055,0.00016233,2]
[372118984,1752527432223,-543.53370726,0.00016233,2]
[372118985,1752527432232,-281.16368452,0.00016236,2]
[372118987,1752527432242,-919.60477781,0.00016236,2]
[372118989,1752527432252,-300.0,0.00016325,2]
[372118991,1752527432262,-300.0,0.00016325,2]
[372118993,1752527432271,-38.31403884,0.00016325,2]
[372119597,1752527438157,-261.68596116,0.00016325,2]
[372119599,1752527438166,-353.75894646,0.00016325,2]
[372119604,1752527438212,-846.24105354,0.00016325,2]
[372119606,1752527438221,-300.0,0.00016325,2]
[372119608,1752527438230,-520.67,0.00016327,3]
[372119610,1752527438241,-260.33,0.00016327,3]
[372119612,1752527438250,-781.04,0.00016327,3]
[372119615,1752527438260,-33228.27790766,0.00016327,2]
[372119617,1752527438273,-3625.31663789,0.00016327,2]
[372119619,1752527438284,-936.60470838,0.00016327,2]
[372119621,1752527438295,-7271.23276284,0.00016327,2]
[372119626,1752527438326,-4938.56798323,0.00016327,2]
[372119628,1752527438336,-500.0,0.00016336,2]
[372119630,1752527438345,-500.0,0.00016336,2]
[372119632,1752527438354,-563.21466038,0.00016336,2]
[372119634,1752527438364,-500.0,0.00016336,2]
[372119636,1752527438374,-424.96008316,0.00016336,2]
[372119638,1752527438383,-322.60524523,0.00016336,2]
[372119640,1752527438392,-500.0,0.00016336,2]
[372119642,1752527438402,-500.0,0.00016336,2]
[372119644,1752527438411,-500.0,0.00016336,2]
[372119646,1752527438420,-500.0,0.00016336,2]
[372119648,1752527438429,-500.0,0.00016336,2]
[372119650,1752527438438,-500.0,0.00016336,2]
[372119652,1752527438447,-500.0,0.00016336,2]
[372119654,1752527438456,-500.0,0.00016336,2]
[372119655,1752527438465,-500.0,0.00016336,2]
[372119657,1752527438475,-500.0,0.00016336,2]
[372119660,1752527438484,-500.0,0.00016336,2]
[372119661,1752527438494,-500.0,0.00016336,2]
[372119663,1752527438503,-500.0,0.00016336,2]
[372119665,1752527438512,-500.0,0.00016336,2]
[372119667,1752527438521,-500.0,0.00016336,2]
[372119669,1752527438531,-500.0,0.00016336,2]
[372119671,1752527438540,-500.0,0.00016336,2]
[372119673,1752527438550,-564.77212487,0.00016336,2]
[372119676,1752527438559,-500.0,0.00016336,2]
[372119678,1752527438568,-500.0,0.00016336,2]
[372119680,1752527438577,-500.0,0.00016336,2]
[372119682,1752527438587,-370000.0,0.00016337,2]
[372119683,1752527438597,-515.17072512,0.00016338,2]
[372119686,1752527438611,-462.39356415,0.00016438,2]
[372119688,1752527438621,-460.0,0.00016438,2]
[372119690,1752527438630,-460.0,0.00016438,2]
[372119692,1752527438639,-525.35749845,0.00016438,2]
[372119694,1752527438649,-460.0,0.00016438,2]
[372119696,1752527438658,-460.0,0.00016438,2]
[372119698,1752527438668,-460.0,0.00016438,2]
[372119700,1752527438677,-460.0,0.00016438,2]
[372119702,1752527438686,-460.0,0.00016438,2]
[372119704,1752527438696,-366.27236655,0.00016438,2]
[372119706,1752527438706,-460.0,0.00016438,2]
[372119708,1752527438715,-460.0,0.00016438,2]
[372119710,1752527438724,-460.0,0.00016438,2]
[372119712,1752527438733,-460.0,0.00016438,2]
[372119714,1752527438743,-462.18350068,0.00016438,2]
[372119715,1752527438752,-451.63635953,0.00016438,2]
[372119717,1752527438762,-460.0,0.00016438,2]
[372119719,1752527438772,-460.0,0.00016438,2]
[372119721,1752527438782,-461.4511122,0.00016438,2]
[372119723,1752527438792,-460.0,0.00016438,2]
[372119726,1752527438802,-460.0,0.00016438,2]
[372119727,1752527438810,-466.48323368,0.00016438,2]
[372119729,1752527438819,-460.0,0.00016438,2]
[372119731,1752527438828,-460.0,0.00016438,2]
[372119732,1752527438838,-1000.0,0.00016438,2]
[372119733,1752527438847,-460.0,0.00016438,2]
[372119734,1752527438856,-460.0,0.00016438,2]
[372119735,1752527438865,-460.0,0.00016438,2]
[372119736,1752527438874,-460.0,0.00016438,2]
[372119737,1752527438883,-460.0,0.00016438,2]
[372119738,1752527438892,-460.0,0.00016438,2]
[372119739,1752527438901,-460.0,0.00016438,2]
[372119740,1752527438911,-460.0,0.00016438,2]
[372119741,1752527438920,-460.0,0.00016438,2]
[372119742,1752527438929,-460.0,0.00016438,2]
[372119743,1752527438938,-460.0,0.00016438,2]
[372119744,1752527438947,-460.0,0.00016438,2]
[372119745,1752527438956,-460.0,0.00016438,2]
[372119747,1752527438965,-484.85765657,0.00016438,2]
[372119748,1752527438975,-460.0,0.00016438,2]
[372119750,1752527438985,-602.14393716,0.00016438,2]
[372119752,1752527438995,-209.48986205,0.00016438,2]
[372119754,1752527439005,-460.0,0.00016438,2]
[372119756,1752527439014,-460.0,0.00016438,2]
[372119758,1752527439023,-460.0,0.00016438,2]
[372119759,1752527439032,-460.0,0.00016438,2]
[372119761,1752527439042,-460.0,0.00016438,2]
[372119763,1752527439051,-224.11667972,0.00016438,2]
[372119765,1752527439060,-460.0,0.00016438,2]
[372119767,1752527439069,-460.0,0.00016438,2]
[372119769,1752527439079,-460.0,0.00016438,2]
[372119771,1752527439088,-460.0,0.00016438,2]
[372119773,1752527439099,-460.0,0.00016438,2]
[372119775,1752527439110,-500.0,0.00016438,2]
[372119778,1752527439122,-500.0,0.00016438,2]
[372119780,1752527439131,-460.0,0.00016438,2]
[372119781,1752527439141,-505.79646624,0.00016438,2]
[372119783,1752527439151,-460.0,0.00016438,2]
[372119785,1752527439161,-323.47531676,0.00016438,2]
[372119787,1752527439171,-460.0,0.00016438,2]
[372119789,1752527439180,-460.0,0.00016438,2]
[372119791,1752527439189,-460.0,0.00016438,2]
[372119793,1752527439198,-460.0,0.00016438,2]
[372119795,1752527439207,-460.0,0.00016438,2]
[372119797,1752527439216,-460.0,0.00016438,2]
[372119799,1752527439226,-460.0,0.00016438,2]
[372119801,1752527439235,-460.0,0.00016438,2]
[372119802,1752527439247,-460.0,0.00016438,2]
[372119804,1752527439256,-471.56441384,0.00016438,2]
[372119806,1752527439268,-460.0,0.00016438,2]
[372119808,1752527439277,-460.0,0.00016438,2]
[372119810,1752527439286,-460.0,0.00016438,2]
[372119812,1752527439296,-460.0,0.00016438,2]
[372119814,1752527439306,-460.0,0.00016438,2]
[372119816,1752527439323,-460.0,0.00016438,2]
[372119818,1752527439332,-460.0,0.00016438,2]
[372119820,1752527439342,-460.0,0.00016438,2]
[372119822,1752527439350,-460.0,0.00016438,2]
[372119824,1752527439360,-460.0,0.00016438,2]
[372119826,1752527439369,-460.0,0.00016438,2]
[372119828,1752527439378,-460.0,0.00016438,2]
[372119830,1752527439387,-443.04521487,0.00016438,2]
[372119831,1752527439396,-460.0,0.00016438,2]
[372119833,1752527439405,-460.0,0.00016438,2]
[372119835,1752527439415,-582.6499586,0.00016438,2]
[372119837,1752527439424,-460.0,0.00016438,2]
[372119839,1752527439433,-153.06586318,0.00016438,2]
[372119841,1752527439443,-462.92783193,0.00016438,2]
[372119843,1752527439452,-462.21758011,0.00016438,2]
[372119845,1752527439462,-460.0,0.00016438,2]
[372119847,1752527439471,-460.0,0.00016438,2]
[372119849,1752527439481,-460.0,0.00016438,2]
[372119851,1752527439491,-460.56948249,0.00016438,2]
[372119853,1752527439502,-460.0,0.00016438,2]
[372119855,1752527439511,-461.24794855,0.00016438,2]
[372119857,1752527439520,-460.0,0.00016438,2]
[372119859,1752527439530,-460.0,0.00016438,2]
[372119861,1752527439539,-460.65671789,0.00016438,2]
[372119862,1752527439548,-460.0,0.00016438,2]
[372119864,1752527439558,-460.0,0.00016438,2]
[372119866,1752527439567,-461.62117888,0.00016438,2]
[372119868,1752527439576,-460.0,0.00016438,2]
[372119870,1752527439585,-460.0,0.00016438,2]
[372119872,1752527439594,-460.0,0.00016438,2]
[372119874,1752527439604,-460.0,0.00016438,2]
[372119876,1752527439612,-460.0,0.00016438,2]
[372119878,1752527439622,-440.16058785,0.00016438,2]
[372119880,1752527439632,-460.0,0.00016438,2]
[372119882,1752527439641,-460.0,0.00016438,2]
[372119884,1752527439650,-495.0958467,0.00016438,2]
[372119886,1752527439659,-152.93346992,0.00016438,2]
[372119888,1752527439668,-314.76720796,0.00016438,2]
[372119890,1752527439678,-219.79892354,0.00016438,2]
[372119892,1752527439686,-460.0,0.00016438,2]
[372119894,1752527439695,-460.0,0.00016438,2]
[372119897,1752527439705,-460.0,0.00016438,2]
[372119899,1752527439714,-460.0,0.00016438,2]
[372119900,1752527439723,-460.0,0.00016438,2]
[372119902,1752527439732,-460.0,0.00016438,2]
[372119904,1752527439741,-292.33543009,0.00016438,2]
[372119906,1752527439751,-500.0,0.00016438,2]
[372119908,1752527439760,-500.0,0.00016438,2]
[372119910,1752527439770,-500.0,0.00016438,2]
[372119912,1752527439779,-500.0,0.00016438,2]
[372119914,1752527439788,-500.0,0.00016438,2]
[372119916,1752527439797,-500.0,0.00016438,2]
[372119918,1752527439807,-283.49550246,0.00016438,2]
[372119920,1752527439816,-460.0,0.00016438,2]
[372119922,1752527439825,-460.0,0.00016438,2]
[372119924,1752527439834,-460.0,0.00016438,2]
[372119926,1752527439843,-460.0,0.00016438,2]
[372119928,1752527439852,-460.0,0.00016438,2]
[372119930,1752527439862,-460.0,0.00016438,2]
[372119945,1752527440001,-460.0,0.00016438,2]
[372119947,1752527440011,-460.0,0.00016438,2]
[372119949,1752527440021,-460.0,0.00016438,2]
[372119951,1752527440030,-500.0,0.00016438,2]
[372119953,1752527440040,-500.0,0.00016438,2]
[372119955,1752527440050,-461.62414495,0.00016438,2]
[372119957,1752527440059,-500.0,0.00016438,2]
[372119959,1752527440069,-621.39781811,0.00016438,2]
[372119961,1752527440079,-461.71703373,0.00016438,2]
[372119963,1752527440088,-460.0,0.00016438,2]
[372119965,1752527440099,-460.0,0.00016438,2]
[372119967,1752527440110,-460.0,0.00016438,2]
[372119969,1752527440119,-460.0,0.00016438,2]
[372119971,1752527440129,-460.0,0.00016438,2]
[372119973,1752527440138,-460.0,0.00016438,2]
[372119975,1752527440149,-460.0,0.00016438,2]
[372119977,1752527440159,-460.0,0.00016438,2]
[372119979,1752527440168,-535.8635729,0.00016438,2]
[372119981,1752527440181,-460.0,0.00016438,2]
[372119983,1752527440191,-460.0,0.00016438,2]
[372119985,1752527440201,-460.0,0.00016438,2]
[372119987,1752527440211,-460.0,0.00016438,2]
[372119989,1752527440220,-460.0,0.00016438,2]
[372119991,1752527440230,-460.0,0.00016438,2]
[372119993,1752527440240,-508.87784619,0.00016438,2]
[372119995,1752527440250,-292.17819883,0.00016438,2]
[372119997,1752527440260,-460.0,0.00016438,2]
[372119999,1752527440271,-460.0,0.00016438,2]
[372120001,1752527440280,-460.0,0.00016438,2]
[372120003,1752527440290,-460.0,0.00016438,2]
[372120005,1752527440299,-460.0,0.00016438,2]
[372120007,1752527440309,-460.0,0.00016438,2]
[372120009,1752527440319,-460.0,0.00016438,2]
[372120011,1752527440330,-460.0,0.00016438,2]
[372120013,1752527440339,-460.0,0.00016438,2]
[372120014,1752527440348,-460.0,0.00016438,2]
[372120016,1752527440358,-460.0,0.00016438,2]
[372120018,1752527440367,-460.0,0.00016438,2]
[372120020,1752527440377,-461.37318142,0.00016438,2]
[372120022,1752527440386,-460.0,0.00016438,2]
[372120024,1752527440395,-460.0,0.00016438,2]
[372120026,1752527440405,-460.0,0.00016438,2]
[372120028,1752527440414,-460.0,0.00016438,2]
[372120030,1752527440424,-460.0,0.00016438,2]
[372120032,1752527440433,-460.0,0.00016438,2]
[372120034,1752527440443,-198.16212389,0.00016438,2]
[372120036,1752527440452,-462.17338485,0.00016438,2]
[372120038,1752527440461,-460.0,0.00016438,2]
[372120040,1752527440470,-460.0,0.00016438,2]
[372120042,1752527440479,-460.0,0.00016438,2]
[372120044,1752527440492,-460.0,0.00016438,2]
[372120046,1752527440507,-460.0,0.00016438,2]
[372120048,1752527440517,-460.0,0.00016438,2]
[372120050,1752527440527,-460.0,0.00016438,2]
[372120052,1752527440536,-460.0,0.00016438,2]
[372120054,1752527440545,-460.0,0.00016438,2]
[372120056,1752527440555,-460.0,0.00016438,2]
[372120058,1752527440565,-460.0,0.00016438,2]
[372120060,1752527440574,-460.0,0.00016438,2]
[372120062,1752527440583,-460.0,0.00016438,2]
[372120064,1752527440592,-460.0,0.00016438,2]
[372120066,1752527440601,-460.0,0.00016438,2]
[372120068,1752527440610,-460.0,0.00016438,2]
[372120069,1752527440620,-460.0,0.00016438,2]
[372120071,1752527440630,-460.0,0.00016438,2]
[372120073,1752527440639,-460.0,0.00016438,2]
[372120075,1752527440649,-460.0,0.00016438,2]
[372120077,1752527440658,-460.0,0.00016438,2]
[372120079,1752527440667,-460.0,0.00016438,2]
[372120081,1752527440677,-460.0,0.00016438,2]
[372120083,1752527440686,-460.0,0.00016438,2]
[372120085,1752527440696,-460.0,0.00016438,2]
[372120087,1752527440705,-460.0,0.00016438,2]
[372120089,1752527440715,-460.0,0.00016438,2]
[372120091,1752527440729,-460.0,0.00016438,2]
[372120093,1752527440739,-460.0,0.00016438,2]
[372120095,1752527440750,-460.0,0.00016438,2]
[372120097,1752527440760,-460.0,0.00016438,2]
[372120099,1752527440771,-460.0,0.00016438,2]
[372120101,1752527440781,-460.0,0.00016438,2]
[372120103,1752527440790,-460.0,0.00016438,2]
[372120105,1752527440799,-460.0,0.00016438,2]
[372120107,1752527440809,-225.57608507,0.00016438,2]
[372120109,1752527440818,-460.0,0.00016438,2]
[372120111,1752527440827,-460.0,0.00016438,2]
[372120113,1752527440837,-460.0,0.00016438,2]
[372120115,1752527440846,-460.0,0.00016438,2]
[372120117,1752527440856,-460.0,0.00016438,2]
[372120119,1752527440866,-460.0,0.00016438,2]
[372120121,1752527440875,-460.0,0.00016438,2]
[372120123,1752527440884,-460.0,0.00016438,2]
[372120125,1752527440893,-460.0,0.00016438,2]
[372120127,1752527440903,-460.0,0.00016438,2]
[372120129,1752527440912,-460.0,0.00016438,2]
[372120131,1752527440928,-460.0,0.00016438,2]
[372120133,1752527440938,-460.0,0.00016438,2]
[372120135,1752527440947,-321.94627158,0.00016438,2]
[372120137,1752527440956,-460.0,0.00016438,2]
[372120139,1752527440966,-460.0,0.00016438,2]
[372120141,1752527440976,-460.0,0.00016438,2]
[372120143,1752527440985,-460.0,0.00016438,2]
[372120145,1752527440994,-460.0,0.00016438,2]
[372120147,1752527441005,-460.0,0.00016438,2]
[372120149,1752527441015,-460.0,0.00016438,2]
[372120151,1752527441025,-460.0,0.00016438,2]
[372120153,1752527441034,-460.0,0.00016438,2]
[372120155,1752527441043,-460.0,0.00016438,2]
[372120157,1752527441052,-460.0,0.00016438,2]
[372120158,1752527441062,-460.0,0.00016438,2]
[372120161,1752527441071,-460.0,0.00016438,2]
[372120163,1752527441081,-462.30642249,0.00016438,2]
[372120164,1752527441090,-460.0,0.00016438,2]
[372120166,1752527441102,-460.0,0.00016438,2]
[372120168,1752527441111,-460.0,0.00016438,2]
[372120170,1752527441120,-460.0,0.00016438,2]
[372120172,1752527441129,-460.0,0.00016438,2]
[372120174,1752527441138,-460.0,0.00016438,2]
[372120176,1752527441149,-460.0,0.00016438,2]
[372120178,1752527441158,-460.0,0.00016438,2]
[372120180,1752527441168,-460.0,0.00016438,2]
[372120182,1752527441179,-197.81931424,0.00016438,2]
[372120184,1752527441189,-460.0,0.00016438,2]
[372120186,1752527441198,-460.0,0.00016438,2]
[372120189,1752527441209,-460.0,0.00016438,2]
[372120190,1752527441218,-500.0,0.00016438,2]
[372120192,1752527441228,-500.0,0.00016438,2]
[372120194,1752527441237,-500.0,0.00016438,2]
[372120196,1752527441247,-334.62,0.00016438,2]
[372120198,1752527441257,-460.0,0.00016438,2]
[372120200,1752527441267,-460.0,0.00016438,2]
[372120202,1752527441276,-460.0,0.00016438,2]
[372120203,1752527441286,-460.0,0.00016438,2]
[372120204,1752527441295,-460.0,0.00016438,2]
[372120205,1752527441305,-460.0,0.00016438,2]
[372120206,1752527441315,-460.0,0.00016438,2]
[372120207,1752527441325,-460.0,0.00016438,2]
[372120208,1752527441335,-254.18663775,0.00016438,2]
[372120209,1752527441345,-460.0,0.00016438,2]
[372120210,1752527441354,-460.0,0.00016438,2]
[372120211,1752527441363,-460.0,0.00016438,2]
[372120212,1752527441374,-460.0,0.00016438,2]
[372120213,1752527441383,-460.0,0.00016438,2]
[372120214,1752527441393,-497.1651896,0.00016438,2]
[372120215,1752527441402,-460.0,0.00016438,2]
[372120216,1752527441412,-460.0,0.00016438,2]
[372120217,1752527441421,-460.0,0.00016438,2]
[372120218,1752527441431,-452.67279339,0.00016438,2]
[372120219,1752527441440,-460.0,0.00016438,2]